[Event "81st Italian Championship 2022"]
[Site "Cagliari"]
[Date "2022.11.15"]
[Round "4.4"]
[White "Lodici, Lorenzo"]
[Black "Brunello, Sabino"]
[Result "1-0"]
[ECO "E01"]
[WhiteElo "2536"]
[BlackElo "2518"]
[Annotator "TA"]
[PlyCount "37"]
[EventDate "2022.11.12"]
[EventType "tourn"]
[EventCountry "ITA"]
[SourceTitle "playchess.com"]
[Source "ChessBase"]
[SourceQuality "1"]
[TimeControl "40/6000+30:20/3000:900+30"]

{[%evp 15,37,0,0,0,0,0,32,10,0,0,0,7,0,34,4,10,9,22,54,48,83,94,413,410]} 1. d4 {[%emt 0:04:19]} d5 {[%emt 0:00:12]} 2. c4 {[%emt 0:00:06]} c6 {[%emt 0:00:02]} 3. Nc3 {[%emt 0:00:45]} Nf6 {[%emt 0:00:05]} 4. Nf3 {[%emt 0:00:25]} e6 {[%emt 0:00:18]} 5. g3 {[%emt 0:03:17]} Nbd7 {[%emt 0:24:56]} 6. Bg2 {[%emt 0:02:00]} dxc4 {[%emt 0:01:13]} 7. O-O {[%emt 0:00:08]} b5 {[%emt 0:13:29]} 8. e4 {[%emt 0:02:51][%cal Be2e4,Be4e5][%mdl 32]} Bb7 {[%emt 0:04:53]} 9. e5 {[%emt 0:00:05] E01: Catalan: Early deviations.} Nd5 {[%emt 0:00:17]} 10. Ng5 {[%emt 0:00:03] Strongly threatening Qh5.} h6 {[%emt 0:09:05] [#] 10...h6 scores better than 10...Be7.} 11. Nxe6 {[%emt 0:02:13] White is slightly better.} fxe6 {[%emt 0:00:04]} 12. Qh5+ $40 {[%emt 0:00:05][%mdl 128] Black needs to defend precisely.} Ke7 {[%emt 0:00:12]} 13. Ne4 $1 {[%emt 0:00:03][%cal Bc3e4,Be4g5,Bg5e6,Be6f8][%mdl 32] Threatens to win with Nd6.} Qe8 {[%emt 0:06:29]} 14. Bg5+ $1 {[%emt 0:00:06]} hxg5 {[%emt 0:00:10]} 15. Qxh8 {[%emt 0:00:04] [#] Black must now prevent Nd6. The board is on fire.} Kd8 {[%emt 0:00:19] And now ...Qg6 would win.} 16. Nxg5 {[%emt 0:00:06]} Kc7 {[%emt 0:07:24] [#]} 17. Qg8 $146 {[%emt 0:12:15][%mdl 1024] White has compensation.} ({Predecessor:} 17. Qh3 Kb6 18. Nxe6 a5 19. Rfc1 Bc8 20. Nxf8 Nxf8 21. Qh8 Qf7 22. a4 Bb7 23. Qh4 {1-0 (47) Andreikin,D (2728)-Kollars,D (2621) Chess.com INT 2021}) 17... Kb6 {[%emt 0:19:00]} 18. Nxe6 {[%emt 0:03:46] White is much more active. The black rooks are badly placed.} c5 $2 {[%emt 0:15:03][%mdl 8192]} (18... Nc7 $16 {is more resistant.} 19. Nxc7 (19. Nxg7 $2 Qg6 $19) 19... Kxc7) 19. Nxf8 {[%emt 0:09:41] Weighted Error Value: White=0.00 (flawless) /Black=0.65} 1-0

[Event "81st Italian Championship 2022"]
[Site "Cagliari"]
[Date "2022.11.15"]
[Round "4.5"]
[White "Moroni, Luca Jr"]
[Black "Godena, Michele"]
[Result "1/2-1/2"]
[ECO "D02"]
[WhiteElo "2559"]
[BlackElo "2463"]
[Annotator "TA"]
[PlyCount "35"]
[EventDate "2022.11.12"]
[EventType "tourn"]
[EventCountry "ITA"]
[SourceTitle "playchess.com"]
[Source "ChessBase"]
[SourceQuality "1"]
[TimeControl "40/6000+30:20/3000:900+30"]

{[%evp 9,35,0,-7,-7,0,-7,6,0,0,-2,0,0,-8,-16,0,-24,-22,-59,-44,-54,-47,-50,-65,-75,-80,-62,-42,-66]} 1. d4 {[%emt 0:00:27]} d5 {[%emt 0:00:27]} 2. Nf3 {[%emt 0:00:04]} c5 {[%emt 0:03:15]} 3. e3 {[%emt 0:06:57]} e6 {[%emt 0:03:05]} 4. dxc5 {[%emt 0:07:08]} Bxc5 {[%emt 0:00:23]} 5. a3 {[%emt 0:00:03]} Nf6 {[%emt 0:02:05]} 6. b4 {[%emt 0:11:03] D02: 1 d4 d5 2 Nf3 sidelines, including 2...Nf6 3 g3 and 2...Nf6 3 Bf4.} Bd6 {[%emt 0:17:12] has lost popularity (6...Be7).} 7. Bb2 {[%emt 0:01:42]} Qe7 {[%emt 0:09:51]} 8. Nbd2 {[%emt 0:03:07] The position is equal.} a5 {[%emt 0:08:35]} 9. b5 {[%emt 0:03:09] [#]} a4 $146 {[%emt 0:04:04]} ({Predecessor:} 9... Nbd7 10. c4 O-O 11. Be2 e5 12. cxd5 e4 13. Nd4 Nb6 14. Nc4 Nxc4 15. Bxc4 Bd7 {½-½ (21) Roy Chowdhury,S (2457)-Drozdovskij,Y (2608) Bad Wiessee 2010}) 10. c4 {[%emt 0:12:05]} Nbd7 {[%emt 0:00:49][%cal Bb8d7,Bd7c5,Bc5b3][%mdl 32]} 11. Be2 {[%emt 0:08:34]} O-O {[%emt 0:00:52]} 12. cxd5 {[%emt 0:11:20]} exd5 {[%emt 0:00:17]} 13. Nf1 {[%emt 0:06:10]} Nc5 {[%emt 0:13:59]} 14. Ng3 {[%emt 0:06:44]} Nb3 {[%emt 0:05:26]} 15. Ra2 {[%emt 0:00:09]} Be6 {[%emt 0:00:47]} 16. Nd4 {[%emt 0:00:33]} Be5 {[%emt 0:14:18]} 17. O-O {[%emt 0:00:59]} Rfc8 {[%emt 0:03:50]} (17... Bxd4 $5 18. Bxd4 Rfc8 $15) 18. Bd3 {[%emt 0:06:46] Weighted Error Value: White=0.07 (flawless) /Black=0.06 (flawless)} 1/2-1/2

[Event "81st Italian Championship 2022"]
[Site "Cagliari"]
[Date "2022.11.15"]
[Round "4.6"]
[White "Lettieri, Giuseppe"]
[Black "Carnicelli, Valerio"]
[Result "0-1"]
[ECO "B31"]
[WhiteElo "2427"]
[BlackElo "2325"]
[Annotator "TA"]
[PlyCount "77"]
[EventDate "2022.11.12"]
[EventType "tourn"]
[EventCountry "ITA"]
[SourceTitle "playchess.com"]
[Source "ChessBase"]
[SourceQuality "1"]
[TimeControl "40/6000+30:20/3000:900+30"]

{[%evp 18,77,-14,-63,-79,-77,-77,-55,-37,-55,-40,-61,-54,-130,-125,-121,-111,-359,-7,0,-16,-14,0,0,20,24,83,81,79,0,0,0,308,267,233,122,306,294,304,322,526,497,812,-104,-104,-187,-164,-181,-166,-141,-143,-250,-249,-328,-322,-303,-315,-300,-289,-272,-272,-304]} 1. e4 {[%emt 0:00:02]} c5 {[%emt 0:02:59]} 2. Nf3 {[%emt 0:00:04]} Nc6 {[%emt 0:00:04]} 3. Bb5 {[%emt 0:00:05]} g6 {[%emt 0:00:05]} 4. O-O {[%emt 0:00:07]} Bg7 {[%emt 0:00:03]} 5. c3 {[%emt 0:00:17]} Nf6 {[%emt 0:00:05]} 6. Re1 {[%emt 0:00:14]} O-O {[%emt 0:00:06]} 7. d4 {[%emt 0:01:19]} d5 {[%emt 0:00:09]} 8. exd5 {[%emt 0:20:44]} Qxd5 {[%emt 0:02:45]} 9. c4 {[%emt 0:00:33]} Qd6 {[%emt 0:01:16]} 10. d5 {[%emt 0:05:33]} (10. Bxc6 $11 {deserves consideration.} bxc6 11. Nc3) 10... Nd4 $15 {[%emt 0:01:02] B31: Sicilian: 2...Nc6 3 Bb5 g6.} 11. Nxd4 {[%emt 0:00:59]} cxd4 {[%emt 0:00:04]} 12. Nd2 {[%emt 0:10:08]} e5 {[%emt 0:09:35][%cal Be7e5,Be5e4][%mdl 32] Black is slightly better.} 13. Ba4 $1 {[%emt 0:10:43]} Bf5 {[%emt 0:08:01]} 14. f3 {[%emt 0:10:15]} Rac8 {[%emt 0:12:30] [#] Black is much more active.} 15. g4 $146 {[%emt 0:02:59]} (15. a3 $15) ({Predecessor:} 15. Bb3 b5 16. cxb5 Nxd5 17. Ne4 Qd7 18. a4 Kh8 19. Bd2 Bxe4 20. fxe4 Ne7 21. Qe2 {½-½ (70) Nebolsina,V (2073)-Harika,D (2353) Chalkidiki 2003}) 15... Bd3 $17 {[%emt 0:21:02]} 16. Qb3 {[%emt 0:05:10]} e4 {[%emt 0:00:41]} 17. g5 $2 {[%emt 0:00:14]} (17. Nxe4 $17 {keeps fighting.} Bxe4 18. fxe4 Nxg4 19. Qg3 Qxg3+ 20. hxg3) 17... Nd7 $2 {[%emt 0:05:34]} (17... exf3 $1 $19 {[%cal Of3f2] ( -> ...f2+!)} 18. Qxd3 f2+ 19. Kxf2 Qxh2+ 20. Kf3 Qh3+ 21. Ke2 Rfe8+ $1 {[%mdl 512]} 22. Bxe8 Rxe8+ 23. Ne4 Rxe4+ 24. Kd2 Qxd3+ 25. Kxd3 Rxe1 26. gxf6 Bxf6) 18. Nxe4 $11 {[%emt 0:05:16]} Bxe4 {[%emt 0:00:39]} 19. Bxd7 {[%emt 0:00:05]} (19. fxe4 $2 Nc5 20. Qa3 Be5 $19) 19... Qxd7 {[%emt 0:01:07]} 20. Rxe4 {[%emt 0:00:19]} b5 {[%emt 0:15:31]} 21. Qxb5 {[%emt 0:02:05]} Qh3 {[%emt 0:19:24]} (21... Qxb5 $11 {remains equal.} 22. cxb5 Rfd8) 22. Qb3 $16 {[%emt 0:05:01] Bf4 is the strong threat.} Rfe8 {[%emt 0:01:13]} 23. Bf4 {[%emt 0:09:58]} (23. Qd3 $1 $16) 23... Rxe4 $11 {[%emt 0:01:19]} 24. fxe4 {[%emt 0:00:02]} Qg4+ {[%emt 0:00:57][%mdl 8192]} (24... d3 $11 25. Bg3 d2) 25. Qg3 $18 {[%emt 0:01:04]} Qe2 {[%emt 0:00:02]} 26. Re1 {[%emt 0:14:56]} (26. b3 $18) 26... Qxb2 {[%emt 0:00:02]} (26... Qxc4 $16 27. Rc1 Qa6) 27. Qd3 {[%emt 0:00:48]} Qc3 {[%emt 0:00:35]} 28. Rd1 {[%emt 0:01:04]} Rxc4 $2 {[%emt 0:00:49]} (28... Qb4 29. d6 Qa5) 29. d6 {[%emt 0:00:24]} Kf8 {[%emt 0:06:07] [#]} (29... Qxd3 $142 30. Rxd3 Rc8) 30. Qxc3 $2 {[%emt 0:02:01]} (30. Rb1 $1 $18 {Qxc3 would kill now.} Rc8 31. Rc1 Qxc1+ 32. Bxc1 Rxc1+ 33. Kf2) 30... dxc3 {[%emt 0:00:01][%cal Bd4c3,Bc3c2][%mdl 4128] Endgame KRB-KRB} 31. d7 {[%emt 0:00:08]} (31. Rb1 $17 Bd4+ 32. Kg2) 31... Bd4+ $19 {[%emt 0:00:04]} 32. Kf1 {[%emt 0:02:50]} Ke7 {[%emt 0:00:03] Hoping for ...c2.} 33. Ke2 {[%emt 0:00:42] [#]} c2 $1 {[%emt 0:00:56]} 34. Rf1 {[%emt 0:00:05]} (34. Rd3 $17) 34... Bb2 {[%emt 0:01:06]} (34... Kxd7 35. Kd3 Be5 36. Bd2 (36. Kxc4 $2 Bxf4 37. Rh1 c1=Q+ $19) 36... Rd4+ 37. Kxc2 $17) 35. Bc1 {[%emt 0:00:57]} Bxc1 {[%emt 0:00:19] Black has a decisive advantage.} ({And not} 35... Rxe4+ 36. Kd2 Rd4+ 37. Kxc2 Bxc1 38. Kxc1 $17) 36. Rxc1 {[%emt 0:00:05]} Rxe4+ {[%emt 0:01:24]} ({Inferior is} 36... Kxd7 37. Kd3 Rc5 38. h4 $11) 37. Kd3 {[%emt 0:00:00]} Re5 {[%emt 0:00:14]} 38. Rxc2 {[%emt 0:00:20]} Rxg5 {[%emt 0:00:18]} ({Stronger than} 38... Kxd7 39. Rf2 $17) 39. Kd4 {[%emt 0:02:24] Both players deserved the win here.  Weighted Error Value: White=0.59/Black=0.52} 0-1

[Event "81st Italian Championship 2022"]
[Site "Cagliari"]
[Date "2022.11.16"]
[Round "5.1"]
[White "Carnicelli, Valerio"]
[Black "Barp, Alberto"]
[Result "1/2-1/2"]
[ECO "C47"]
[WhiteElo "2325"]
[BlackElo "2412"]
[Annotator "TA"]
[PlyCount "113"]
[EventDate "2022.11.12"]
[EventType "tourn"]
[EventCountry "ITA"]
[SourceTitle "playchess.com"]
[Source "ChessBase"]
[SourceQuality "1"]
[TimeControl "40/6000+30:20/3000:900+30"]

{[%evp 17,113,0,8,0,0,0,0,0,0,0,12,5,22,16,27,0,0,1,14,0,6,0,11,11,25,9,31,13,20,0,62,66,63,64,62,73,59,56,58,59,66,53,41,49,46,50,106,87,104,91,87,0,0,0,89,81,107,0,0,0,0,0,0,0,0,0,0,0,0,0,0,0,0,0,0,0,0,0,0,0,0,0,0,0,0,0,0,0,0,0,0,0,0,0,0,0,0,0]} 1. e4 {[%emt 0:00:04]} e5 {[%emt 0:04:39]} 2. Nf3 {[%emt 0:00:04]} Nc6 {[%emt 0:00:03]} 3. d4 {[%emt 0:00:05]} exd4 {[%emt 0:00:28]} 4. Nxd4 {[%emt 0:00:05]} Nf6 {[%emt 0:01:45]} 5. Nc3 {[%emt 0:00:40]} Bb4 {[%emt 0:01:04]} 6. Nxc6 {[%emt 0:00:06]} bxc6 {[%emt 0:00:04]} 7. Bd3 {[%emt 0:00:09]} d5 {[%emt 0:00:12]} 8. exd5 {[%emt 0:00:05]} O-O $1 {[%emt 0:00:08][%mdl 4] outshines the older 8...cxd5.} 9. O-O {[%emt 0:00:03]} cxd5 {[%emt 0:01:47]} 10. h3 {[%emt 0:00:05] C47: Scotch Four Knights and Four Knights with 4 g3.} c6 {[%emt 0:02:01]} 11. Qf3 {[%emt 0:00:05]} Bd6 {[%emt 0:01:19]} 12. Bf4 {[%emt 0:00:06]} Be6 {[%emt 0:04:05]} 13. Ne2 {[%emt 0:02:22]} c5 {[%emt 0:20:30]} 14. Rad1 {[%emt 0:15:34]} Rb8 {[%emt 0:03:37]} 15. b3 {[%emt 0:01:20]} Rb6 {[%emt 0:04:03]} 16. Ng3 {[%emt 0:06:32]} Bxf4 {[%emt 0:06:35]} 17. Qxf4 {[%emt 0:05:02]} Qb8 {[%emt 0:00:06] [#]} 18. Qg5 $146 {[%emt 0:06:35]} ({Predecessor:} 18. Qf3 Rb4 19. Rfe1 Re8 20. Nh5 Nxh5 21. Qxh5 g6 22. Qg5 Qf4 23. Qxf4 Rxf4 24. c4 {½-½ (30) Arslanov,S (2395)-Moiseenko,V (2547) Moscow 2018}) 18... h6 {[%emt 0:04:25]} 19. Qd2 {[%emt 0:00:37]} Qc8 {[%emt 0:10:54]} 20. Rfe1 {[%emt 0:01:56]} Kh8 {[%emt 0:06:53]} 21. Re5 {[%emt 0:08:52]} Rd8 {[%emt 0:04:24]} 22. c3 {[%emt 0:13:47]} Qc7 {[%emt 0:03:22]} 23. Ree1 {[%emt 0:01:35]} c4 {[%emt 0:20:17] [#]} (23... Rbb8 $11) 24. Bxc4 $1 $14 {[%emt 0:16:55]} Rc8 {[%emt 0:03:43]} 25. Bd3 {[%emt 0:00:11]} Qxc3 {[%emt 0:00:12]} 26. Qxc3 {[%emt 0:01:46]} Rxc3 {[%emt 0:00:02]} 27. Ne2 {[%emt 0:00:07]} Rc5 {[%emt 0:03:43]} 28. Rc1 {[%emt 0:04:28]} Rbc6 {[%emt 0:01:24]} 29. b4 {[%emt 0:03:13]} Rxc1 {[%emt 0:00:10]} 30. Rxc1 {[%emt 0:00:06]} Rxc1+ {[%emt 0:00:19]} 31. Nxc1 {[%emt 0:00:06][%mdl 4096] Endgame KBN-KBN} d4 {[%emt 0:02:47]} (31... Kg8 $14) 32. a3 $16 {[%emt 0:04:10]} Nd7 {[%emt 0:00:04]} 33. Kf1 {[%emt 0:02:53]} Ne5 {[%emt 0:00:29]} 34. f4 {[%emt 0:04:24]} (34. Ba6 $16) 34... Nxd3 $11 {[%emt 0:00:26]} 35. Nxd3 {[%emt 0:00:04] KB-KN} g5 {[%emt 0:00:22] [#]} (35... Bc4 $11 36. Ke2 g5) 36. Kf2 $1 $16 {[%emt 0:08:07]} Kg7 {[%emt 0:00:08]} 37. a4 {[%emt 0:00:21]} ({Better is} 37. fxg5 $16 hxg5 38. Ne5) 37... Kf6 $11 {[%emt 0:00:40] The position is equal.} 38. b5 {[%emt 0:02:57]} Ke7 {[%emt 0:00:40]} 39. Ne5 {[%emt 0:01:34]} Kd6 {[%emt 0:01:09]} 40. Nc6 {[%emt 0:01:20]} gxf4 {[%emt 0:00:37] ...d3 is the strong threat.} 41. Nxa7 {[%emt 0:19:30]} d3 {[%emt 0:15:54] aiming for ...Bd5.} 42. b6 {[%emt 0:13:15]} Bd5 {[%emt 0:05:40] Strongly threatening ...Kc5.} 43. Nb5+ {[%emt 0:06:24]} Kc5 {[%emt 0:00:26]} 44. Nc3 {[%emt 0:01:04]} Bb7 {[%emt 0:00:49]} 45. Ke1 {[%emt 0:01:38]} Kxb6 {[%emt 0:01:40]} 46. Kd2 {[%emt 0:01:05]} Bxg2 {[%emt 0:00:00]} 47. Kxd3 {[%emt 0:05:14]} Bxh3 {[%emt 0:01:44]} 48. Ke4 {[%emt 0:00:00] Inhibits Bf5+.} Be6 {[%emt 0:04:57]} 49. Kxf4 {[%emt 0:00:00]} Ka5 {[%emt 0:00:00]} 50. Ne4 {[%emt 0:00:00]} Kxa4 {[%emt 0:01:04]} 51. Nf6 {[%emt 0:00:00]} Kb5 {[%emt 0:00:44]} 52. Ng8 $1 {[%emt 0:00:00]} h5 {[%emt 0:00:00] Hoping for ...h4.} 53. Kg5 {[%emt 0:00:00]} Kc5 {[%emt 0:00:36]} 54. Kxh5 {[%emt 0:00:00]} Kd4 {[%emt 0:02:01]} 55. Kg5 {[%emt 0:00:34]} f5 {[%emt 0:00:12]} 56. Kf4 {[%emt 0:00:00]} Bxg8 {[%emt 0:00:00]} 57. Kxf5 {[%emt 0:02:45] Weighted Error Value: White=0.07 (flawless) /Black=0.09 (flawless)} 1/2-1/2

[Event "81st Italian Championship 2022"]
[Site "Cagliari"]
[Date "2022.11.16"]
[Round "5.2"]
[White "Godena, Michele"]
[Black "Lettieri, Giuseppe"]
[Result "1/2-1/2"]
[ECO "B22"]
[WhiteElo "2463"]
[BlackElo "2427"]
[Annotator "TA"]
[PlyCount "100"]
[EventDate "2022.11.12"]
[EventType "tourn"]
[EventCountry "ITA"]
[SourceTitle "playchess.com"]
[Source "ChessBase"]
[SourceQuality "1"]
[TimeControl "40/6000+30:20/3000:900+30"]

{[%evp 15,100,0,25,2,0,0,0,-10,0,-16,-14,-21,-27,-16,-13,-14,-1,-8,-16,-11,-8,-12,-6,-14,-4,-4,-4,-12,-11,-14,-13,-31,-18,-91,-89,-114,-114,-197,-186,-185,-72,-90,-97,-100,-50,-63,-12,-14,-2,-2,-2,-2,-10,-37,0,0,0,0,0,0,0,0,0,0,0,0,0,0,0,0,0,0,0,0,0,0,0,0,0,0,0,0,0,0,0,0,0]} 1. e4 {[%emt 0:00:04]} c5 {[%emt 0:00:05]} 2. c3 {[%emt 0:00:36]} Nf6 {[%emt 0:00:06]} 3. e5 {[%emt 0:00:08]} Nd5 {[%emt 0:00:07]} 4. Nf3 {[%emt 0:00:11]} Nc6 {[%emt 0:00:12]} 5. d4 {[%emt 0:14:06]} cxd4 {[%emt 0:00:07]} 6. cxd4 {[%emt 0:00:05]} d6 {[%emt 0:00:25]} 7. Bc4 {[%emt 0:00:11]} Nb6 {[%emt 0:00:13]} 8. Bb5 {[%emt 0:00:09]} Bd7 {[%emt 0:00:07][%cal Oc6e5]} 9. exd6 {[%emt 0:05:03] B22: Sicilian: 2 c3.} e6 {[%emt 0:00:05]} 10. O-O {[%emt 0:10:13][%cal Od4d5]} Bxd6 {[%emt 0:00:11]} 11. Re1 {[%emt 0:00:13] [#]} Ne7 $146 {[%emt 0:00:59]} ({Predecessor:} 11... O-O 12. Nc3 Nb4 13. Be2 Bc6 14. Ng5 Rc8 15. a3 N4d5 16. Qd3 Nf6 17. Bf3 Bxf3 18. Qxf3 {0-1 (32) Diaz Carias,S (2047)-Montilla Reyes,J (2112) San Cristobal 2015}) 12. Bf1 {[%emt 0:01:14]} Bc6 {[%emt 0:07:16]} 13. Nc3 {[%emt 0:19:08]} O-O {[%emt 0:00:38]} 14. Ne5 {[%emt 0:07:33]} Nf5 {[%emt 0:30:00]} 15. Qg4 {[%emt 0:10:00]} Bc7 {[%emt 0:19:21]} 16. Nxc6 {[%emt 0:08:04]} bxc6 {[%emt 0:00:01]} 17. Bd3 {[%emt 0:01:12]} Qf6 {[%emt 0:26:35]} 18. h3 {[%emt 0:15:28]} Nd5 {[%emt 0:04:37]} 19. Bg5 {[%emt 0:10:25]} Qg6 {[%emt 0:00:10]} 20. Nxd5 {[%emt 0:00:49]} cxd5 {[%emt 0:00:01]} 21. Bxf5 {[%emt 0:00:26]} exf5 {[%emt 0:00:18]} 22. Qh4 {[%emt 0:00:03]} Rfe8 {[%emt 0:00:53]} 23. Bf4 {[%emt 0:02:11]} (23. Be7 {looks sharper.} f6 24. Rac1 Rac8 25. Bb4) 23... Bb6 {[%emt 0:01:22]} 24. Rxe8+ {[%emt 0:01:14]} (24. Be5 $11) 24... Rxe8 $17 {[%emt 0:00:02]} 25. Rd1 {[%emt 0:03:14]} Re4 {[%emt 0:03:09]} 26. Kf1 {[%emt 0:00:53]} (26. b3 $17) 26... Qc6 $1 $19 {[%emt 0:06:08]} 27. Qg3 {[%emt 0:00:32] [#]} Rxd4 {[%emt 0:01:39]} ({Weaker is} 27... Bxd4 28. Qb3 h6 29. Be3 Bxe3 30. fxe3 $17) (27... h6 $1 $19 {...Qc2 is the strong threat.} 28. Kg1 Bxd4) 28. Rxd4 $17 {[%emt 0:00:29]} Bxd4 $19 {[%emt 0:00:07][%mdl 4096] Endgame KQB-KQB} 29. Be3 {[%emt 0:00:32] [#] Intending Qb8+ and mate.} Qb5+ {[%emt 0:01:49]} (29... h6 $1 $17 {[%cal Oc6c2] And now ...Qc2! would win.} 30. Bxd4 (30. Qb8+ Kh7 $17) 30... Qc4+ 31. Ke1 Qxd4) 30. Kg1 $15 {[%emt 0:00:06]} Bxb2 {[%emt 0:00:13]} (30... Bxe3 $1 $15 31. Qxe3 Qd7) 31. Bxa7 {[%emt 0:00:18][%cal Oa2a4]} h6 {[%emt 0:02:32]} 32. Qb8+ {[%emt 0:00:40]} Qxb8 {[%emt 0:00:01]} 33. Bxb8 $11 {[%emt 0:00:04] KB-KB} Ba3 {[%emt 0:00:59]} 34. Kf1 {[%emt 0:00:23]} f6 {[%emt 0:01:20]} 35. Ke2 {[%emt 0:00:12] The position is equal.} Kf7 {[%emt 0:00:05]} 36. Kd3 {[%emt 0:00:17]} Ke6 {[%emt 0:00:14]} 37. f3 {[%emt 0:01:39]} Kd7 {[%emt 0:02:51]} 38. Ba7 {[%emt 0:00:32]} Kc6 {[%emt 0:00:42]} 39. Be3 {[%emt 0:00:50]} h5 {[%emt 0:00:53]} 40. Kc3 {[%emt 0:00:23]} Bd6 {[%emt 0:02:04]} 41. a4 {[%emt 0:02:59]} Bg3 {[%emt 0:04:30]} 42. Kd3 {[%emt 0:06:04]} Be1 {[%emt 0:06:24]} 43. Bd2 {[%emt 0:12:41]} Bg3 {[%emt 0:02:19]} 44. Bb4 {[%emt 0:05:38]} Be5 {[%emt 0:01:11]} 45. Bd2 {[%emt 0:05:32]} f4 {[%emt 0:03:34]} 46. Bb4 {[%emt 0:06:21]} g6 {[%emt 0:01:11]} 47. Be7 {[%emt 0:03:29]} Kb6 {[%emt 0:00:51] Strongly threatening ...Ka5.} 48. Bb4 {[%emt 0:00:00]} Kc6 {[%emt 0:00:00]} 49. Be7 {[%emt 0:00:18]} Kb6 {[%emt 0:00:00] aiming for ...Ka5.} 50. Bb4 {[%emt 0:00:00]} Kc6 {[%emt 0:31:23] Weighted Error Value: White=0.12 (very precise) /Black=0.15 (very precise)} 1/2-1/2

[Event "81st Italian Championship 2022"]
[Site "Cagliari"]
[Date "2022.11.16"]
[Round "5.3"]
[White "Brunello, Sabino"]
[Black "Moroni, Luca Jr"]
[Result "0-1"]
[ECO "B42"]
[WhiteElo "2518"]
[BlackElo "2559"]
[Annotator "TA"]
[PlyCount "86"]
[EventDate "2022.11.12"]
[EventType "tourn"]
[EventCountry "ITA"]
[SourceTitle "playchess.com"]
[Source "ChessBase"]
[SourceQuality "1"]
[TimeControl "40/6000+30:20/3000:900+30"]

{[%evp 19,86,35,41,0,2,0,12,3,14,0,0,3,27,20,52,44,43,40,40,47,35,22,28,33,65,39,38,30,53,0,0,0,0,0,0,0,0,0,57,45,82,63,162,148,167,148,227,208,202,184,182,94,243,0,0,0,0,0,124,0,0,-1910,-1549,-2095,-1460,-2468,-1421,-1219,-1116]} 1. e4 {[%emt 0:02:13]} c5 {[%emt 0:00:04]} 2. Nf3 {[%emt 0:00:07]} e6 {[%emt 0:00:05]} 3. d4 {[%emt 0:00:57]} cxd4 {[%emt 0:00:05]} 4. Nxd4 {[%emt 0:00:03]} a6 {[%emt 0:00:05]} 5. Bd3 {[%emt 0:05:45]} Bc5 {[%emt 0:00:11]} 6. Nb3 {[%emt 0:00:42]} Ba7 {[%emt 0:00:05]} 7. Qe2 {[%emt 0:17:07]} Nc6 {[%emt 0:00:43]} 8. Be3 {[%emt 0:00:18]} d6 {[%emt 0:00:12]} 9. Nc3 {[%emt 0:09:14]} Nf6 {[%emt 0:01:41]} 10. Bxa7 {[%emt 0:07:25]} Rxa7 {[%emt 0:01:59]} 11. Qe3 {[%emt 0:00:45] B42: Sicilian: Kan Variation: 5 Bd3.} O-O {[%emt 0:02:13]} 12. O-O-O {[%emt 0:08:17][%cal Oe4e5] [#]} e5 $146 {[%emt 0:15:16]} ({Predecessor:} 12... Qe7 13. f4 Nd7 14. Rd2 b6 15. e5 d5 16. g4 f6 17. exf6 Qxf6 18. g5 Qf7 {1-0 (51) Drygalov,A (2508)-Harutjunyan,G (2414) Cheliabinsk 2022}) 13. Nd5 {[%emt 0:10:33] The position is equal.} Ra8 {[%emt 0:11:47]} 14. Nxf6+ {[%emt 0:21:13]} Qxf6 {[%emt 0:00:15]} 15. Bc4 {[%emt 0:00:18]} Qe7 {[%emt 0:07:36]} 16. Rd2 {[%emt 0:03:39]} Qc7 {[%emt 0:13:30]} 17. Kb1 {[%emt 0:08:11]} a5 {[%emt 0:09:31][%cal Ba6a5,Ba5a4,Ba4a3][%mdl 32]} 18. Rhd1 {[%emt 0:06:00]} a4 {[%emt 0:08:13]} 19. Nc1 {[%emt 0:00:01]} Nd4 {[%emt 0:02:39][%cal Bc6d4,Bd4e6,Be6c5][%mdl 32]} 20. Bf1 {[%emt 0:01:17]} a3 {[%emt 0:07:36] White must now prevent ...axb2.} 21. b3 {[%emt 0:01:00]} Rd8 {[%emt 0:02:27]} 22. c3 {[%emt 0:05:11]} Ne6 {[%emt 0:01:14]} 23. g3 {[%emt 0:01:06]} Nc5 {[%emt 0:01:36]} 24. f4 {[%emt 0:00:07]} (24. Nd3 $1 $14 Be6 25. Nb4) 24... Bg4 {[%emt 0:03:03]} 25. Be2 {[%emt 0:00:25]} exf4 {[%emt 0:03:09]} 26. gxf4 {[%emt 0:00:18]} Bxe2 {[%emt 0:02:21]} 27. Nxe2 {[%emt 0:00:01]} Re8 {[%emt 0:00:43] Against e5} 28. Ng3 {[%emt 0:00:25]} Rad8 {[%emt 0:01:19]} ({Better is} 28... f5 $1 $11) 29. Rd5 {[%emt 0:01:05]} b6 {[%emt 0:01:27]} 30. Kc2 {[%emt 0:00:26]} g6 {[%emt 0:01:34]} (30... f6 $14) 31. f5 $1 $18 {[%emt 0:01:07]} Qe7 {[%emt 0:01:27][%cal Rc5e4]} 32. R1d4 {[%emt 0:00:21]} Qh4 {[%emt 0:03:37] Against Qh6} (32... Nd7 $16) 33. b4 {[%emt 0:00:21]} Na4 {[%emt 0:01:34]} 34. Kb3 $1 {[%emt 0:00:27]} Ra8 {[%emt 0:00:58][%cal Bd8a8,Ba8c8,Bc8c4][%mdl 32]} 35. Rxd6 {[%emt 0:00:41]} (35. e5 $1 $18 Qxh2 36. Rd2) 35... b5 {[%emt 0:02:02]} (35... Qxh2 $16 36. Rd2 Qh4) 36. fxg6 $2 {[%emt 0:00:04]} (36. Qd2 $18 {Threatens to win with e5.} Qe7 37. e5) 36... hxg6 $11 {[%emt 0:00:17] aiming for ...Rec8. Chess con chili.} 37. e5 {[%emt 0:01:06]} Qxh2 {[%emt 0:00:27][%csl Ga3,Ga4][%cal Rh2b2]} 38. Rd2 {[%emt 0:00:07] Against Qb2+} Qh3 {[%emt 0:01:00]} (38... Qh4 $11 39. R2d4 Qh2) 39. Qg5 {[%emt 0:00:24]} (39. e6 $1 $16 {[%cal Re6f7]} f6 40. Qd3) 39... Rac8 $40 {[%emt 0:01:10][%csl Ga4][%cal Rc8c3][%mdl 128] Black is up to no good.} (39... Qc8 {leads to mate.} 40. Rxg6+ $1 {[%mdl 512]} fxg6 41. Qxg6+ Kf8 42. Rf2+) 40. c4 {[%emt 0:01:04][%mdl 8192]} (40. Rxg6+ $11 fxg6 41. Qxg6+ Kh8 42. Qf6+ Kh7 43. Qf7+ Kh8 44. Qf6+ Kg8 45. Qg6+ Kh8 46. Qf6+) 40... Rxc4 $19 {[%emt 0:03:02][%csl Ga4][%cal Rc4c3] Black is clearly winning.} 41. Rxg6+ {[%emt 0:28:04] [#]} Kh7 $1 {[%emt 0:00:04][%csl Ga4][%cal Rc4c3]} (41... fxg6 {gets mated.} 42. Qxg6+ Kh8 43. Qxe8+ Kh7 44. Qe7+ Kh6 45. Rd6+) 42. Rg7+ {[%emt 0:00:00]} Kh8 {[%emt 0:00:00][%csl Ga4][%cal Rc4c3]} 43. Rd3 {[%emt 0:00:00] [#] Prevents Rc3+.} Rec8 $1 {[%emt 0:07:42] Weighted Error Value: White=0.60/Black=0.27 (precise)} 0-1